[Event "Austrian Championship Boys-U12 2024"]
[Site "Fuerstenfeld"]
[Date "2024.05.31"]
[Round "4.5"]
[White "Schinwald, Florian"]
[Black "Atlas, Daniel"]
[Result "1-0"]
[ECO "C56"]
[WhiteElo "1521"]
[BlackElo "1629"]
[Annotator "NA RC"]
[PlyCount "57"]
[EventDate "2024.05.28"]
[EventType "swiss"]
[EventCountry "AUT"]
[SourceTitle "playchess.com"]
[Source "ChessBase"]
[SourceQuality "1"]
[TimeControl "5400+30"]

1. e4 {[%emt 0:00:01]} e5 {[%emt 0:00:09]} 2. Nf3 {[%emt 0:00:06]} Nc6 {[%emt 0:00:14]} 3. Bc4 {[%emt 0:00:05]} Nf6 {[%emt 0:00:19]} 4. d4 {[%emt 0:02:14]} exd4 {[%emt 0:03:46]} 5. e5 {[%emt 0:00:06]} d5 {[%emt 0:00:58]} 6. Bb5 {[%emt 0:00:06]} Bb4+ {[%emt 0:02:05]} 7. c3 {[%emt 0:01:31]} dxc3 {[%emt 0:00:43]} 8. bxc3 {[%emt 0:00:07]} Qe7 {[%emt 0:04:39]} 9. Bxc6+ {[%emt 0:01:18]} bxc6 {[%emt 0:00:10]} 10. cxb4 {[%emt 0:00:48]} Qxb4+ {[%emt 0:00:36]} 11. Bd2 {[%emt 0:00:51]} Qb2 {[%emt 0:03:14]} 12. Bc3 {[%emt 0:01:07]} Qb5 {[%emt 0:02:21]} 13. Nd4 {[%emt 0:04:53]} Qc4 {[%emt 0:01:19]} 14. exf6 {[%emt 0:00:49]} O-O {[%emt 0:00:20]} 15. Ne2 {[%emt 0:00:30]} Re8 {[%emt 0:01:00]} 16. O-O {[%emt 0:18:28]} Rxe2 {[%emt 0:01:11]} 17. fxg7 {[%emt 0:00:34]} Bf5 {[%emt 0:06:37]} 18. Qd4 {[%emt 0:07:57]} Qb5 {[%emt 0:04:13]} 19. Nd2 {[%emt 0:03:26]} Rae8 {[%emt 0:02:22]} 20. Nb3 {[%emt 0:02:09]} R2e4 {[%emt 0:03:02]} 21. Qxa7 {[%emt 0:02:30]} Qd3 {[%emt 0:02:06]} 22. Rac1 {[%emt 0:05:48]} Bh3 {[%emt 0:01:32]} 23. f3 {[%emt 0:07:34]} Re2 {[%emt 0:04:26]} 24. Rf2 {[%emt 0:00:50]} Rxf2 {[%emt 0:03:43]} 25. Qxf2 {[%emt 0:07:26]} Re2 {[%emt 0:01:54]} 26. Re1 {[%emt 0:00:21]} Rxe1+ {[%emt 0:05:03]} 27. Qxe1 {[%emt 0:00:17]} Be6 {[%emt 0:00:03]} 28. Nc5 {[%emt 0:04:25]} d4 {[%emt 0:02:05]} 29. Nxd3 {[%emt 0:00:14]} 1-0

[Event "Austrian Championship Boys-U12 2024"]
[Site "Fuerstenfeld"]
[Date "2024.05.31"]
[Round "4.6"]
[White "Aboulenein-Djamshidian, Aryan"]
[Black "Winkelmayr, Raphael"]
[Result "1-0"]
[ECO "D00"]
[WhiteElo "1625"]
[BlackElo "1529"]
[Annotator "NA RC"]
[PlyCount "129"]
[EventDate "2024.05.28"]
[EventType "swiss"]
[EventCountry "AUT"]
[SourceTitle "playchess.com"]
[Source "ChessBase"]
[SourceQuality "1"]
[TimeControl "5400+30"]

1. c3 {[%emt 0:00:05]} d5 {[%emt 0:00:06]} 2. d4 {[%emt 0:00:03]} Nf6 {[%emt 0:00:07]} 3. Bf4 {[%emt 0:00:06]} Bf5 {[%emt 0:00:14]} 4. Qb3 {[%emt 0:00:06]} b6 {[%emt 0:01:08]} 5. e3 {[%emt 0:00:08]} e6 {[%emt 0:00:42]} 6. Bb5+ {[%emt 0:00:14]} Nbd7 {[%emt 0:00:54]} 7. Bc6 {[%emt 0:00:58]} Rc8 {[%emt 0:01:21]} 8. Qa4 {[%emt 0:01:08]} a5 {[%emt 0:00:36]} 9. Nf3 {[%emt 0:00:07]} Bd6 {[%emt 0:00:34]} 10. Ne5 {[%emt 0:01:25]} Bxe5 {[%emt 0:00:43]} 11. Bxe5 {[%emt 0:06:40]} O-O {[%emt 0:00:44]} 12. Bg3 {[%emt 0:00:17]} Qe7 {[%emt 0:03:58]} 13. Bb7 {[%emt 0:01:37]} Rb8 {[%emt 0:00:43]} 14. Qc6 {[%emt 0:00:26]} e5 {[%emt 0:01:02]} 15. Ba6 {[%emt 0:02:05]} Qd6 {[%emt 0:01:53]} 16. Bb5 {[%emt 0:04:51]} Rfe8 {[%emt 0:02:07]} 17. dxe5 {[%emt 0:01:01]} Nxe5 {[%emt 0:01:39]} 18. Qxd6 {[%emt 0:00:09]} cxd6 {[%emt 0:00:28]} 19. Bxe8 {[%emt 0:00:06]} Rxe8 {[%emt 0:00:08]} 20. O-O {[%emt 0:00:44]} h5 {[%emt 0:01:49]} 21. b4 {[%emt 1:18:44]} g5 {[%emt 0:00:55]} 22. f4 {[%emt 0:00:00]} Neg4 {[%emt 0:02:49]} 23. Rf3 {[%emt 0:00:00]} Be4 {[%emt 0:01:31]} 24. fxg5 {[%emt 0:00:00]} Bxf3 {[%emt 0:01:08]} 25. gxf3 {[%emt 0:00:00]} Rxe3 {[%emt 0:01:20]} 26. gxf6 {[%emt 0:00:00]} Nxf6 {[%emt 0:00:27]} 27. Kf2 {[%emt 0:00:00]} Re6 {[%emt 0:01:07]} 28. bxa5 {[%emt 0:00:00]} bxa5 {[%emt 0:00:11]} 29. Nd2 {[%emt 0:00:00]} Kh7 {[%emt 0:00:45]} 30. Nb3 {[%emt 0:00:00]} a4 {[%emt 0:00:09]} 31. Nd4 {[%emt 0:00:00]} Re8 {[%emt 0:01:46]} 32. Bxd6 {[%emt 0:00:00]} Rc8 {[%emt 0:00:15]} 33. Rc1 {[%emt 0:00:00]} Ne8 {[%emt 0:00:40]} 34. Bf4 {[%emt 0:00:00]} Nc7 {[%emt 0:00:23]} 35. Kg3 {[%emt 0:00:00]} Kg6 {[%emt 0:00:50]} 36. Nc6 {[%emt 0:00:00]} Kf6 {[%emt 0:00:45]} 37. Be5+ {[%emt 0:00:00]} Ke6 {[%emt 0:00:24]} 38. Re1 {[%emt 0:00:00]} Kd7 {[%emt 0:00:19]} 39. Bxc7 {[%emt 0:00:00]} Rxc7 {[%emt 0:00:44]} 40. Ne5+ {[%emt 0:00:00]} Ke8 {[%emt 0:00:41]} 41. Ng6+ {[%emt 0:00:00]} Kd8 {[%emt 0:00:43]} 42. Nf4 {[%emt 0:00:00]} Rxc3 {[%emt 0:01:11]} 43. Nxd5 {[%emt 0:00:00]} Rd3 {[%emt 0:00:39]} 44. Nf4 {[%emt 0:00:00]} h4+ {[%emt 0:00:13]} 45. Kf2 {[%emt 0:00:00]} Rd2+ {[%emt 0:00:35]} 46. Re2 {[%emt 0:00:00]} Rd4 {[%emt 0:00:20]} 47. Ke3 {[%emt 0:00:00]} Rb4 {[%emt 0:00:43]} 48. Rd2+ {[%emt 0:00:00]} Ke8 {[%emt 0:00:25]} 49. a3 {[%emt 0:00:00]} Rb3+ {[%emt 0:00:55]} 50. Rd3 {[%emt 0:00:00]} Rb2 {[%emt 0:00:09]} 51. h3 {[%emt 0:00:00]} Ke7 {[%emt 0:01:03]} 52. Nd5+ {[%emt 0:00:00]} Ke6 {[%emt 0:00:25]} 53. Nc3 {[%emt 0:00:00]} Rh2 {[%emt 0:00:24]} 54. Ne4 {[%emt 0:00:00]} Rb2 {[%emt 0:00:36]} 55. Kf4 {[%emt 0:00:00]} Ke7 {[%emt 0:01:25]} 56. Kg4 {[%emt 0:00:00]} Rb3 {[%emt 0:00:04]} 57. Nc5 {[%emt 0:00:00]} Rxd3 {[%emt 0:01:11]} 58. Nxd3 {[%emt 0:00:00]} Kd6 {[%emt 0:00:21]} 59. Nb2 {[%emt 0:00:00]} Ke5 {[%emt 0:00:12]} 60. Nxa4 {[%emt 0:00:00]} f5+ {[%emt 0:00:31]} 61. Kxh4 {[%emt 0:00:00]} Kf4 {[%emt 0:00:47]} 62. Nc3 {[%emt 0:00:00]} Kxf3 {[%emt 0:00:13]} 63. Kg5 {[%emt 0:00:00]} f4 {[%emt 0:00:13]} 64. Nd5 {[%emt 0:00:00]} Kg3 {[%emt 0:01:10]} 65. Nxf4 {[%emt 0:00:00]} 1-0

[Event "Austrian Championship Boys-U12 2024"]
[Site "Fuerstenfeld"]
[Date "2024.05.31"]
[Round "4.7"]
[White "Safonov, Lev"]
[Black "Perfler, Daniel"]
[Result "0-1"]
[ECO "C24"]
[WhiteElo "1473"]
[BlackElo "1623"]
[Annotator "NA RC"]
[PlyCount "63"]
[EventDate "2024.05.28"]
[EventType "swiss"]
[EventCountry "AUT"]
[SourceTitle "playchess.com"]
[Source "ChessBase"]
[SourceQuality "1"]
[TimeControl "5400+30"]

1. e4 {[%emt 0:00:02]} e5 {[%emt 0:00:05]} 2. Bc4 {[%emt 0:00:05]} Nf6 {[%emt 0:00:13]} 3. d3 {[%emt 0:00:09]} c6 {[%emt 0:01:13]} 4. Bg5 {[%emt 0:12:01]} d5 {[%emt 0:01:35]} 5. exd5 {[%emt 0:03:55]} cxd5 {[%emt 0:00:36]} 6. Bxf6 {[%emt 0:00:36]} gxf6 {[%emt 0:13:04]} 7. Bb5+ {[%emt 0:00:14]} Nc6 {[%emt 0:03:43]} 8. Qf3 {[%emt 0:03:59]} Qd6 {[%emt 0:15:27]} 9. Nc3 {[%emt 0:05:52]} d4 {[%emt 0:06:23]} 10. Bxc6+ {[%emt 0:03:53]} Qxc6 {[%emt 0:00:58]} 11. Qxc6+ {[%emt 0:00:10]} bxc6 {[%emt 0:00:01]} 12. Ne4 {[%emt 0:00:20]} f5 {[%emt 0:01:37]} 13. Nf6+ {[%emt 0:01:18]} Ke7 {[%emt 0:02:06]} 14. Nh5 {[%emt 0:00:11]} f4 {[%emt 0:00:40]} 15. h3 {[%emt 0:01:00]} Rg8 {[%emt 0:02:02]} 16. g4 {[%emt 0:03:50]} f5 {[%emt 0:03:43]} 17. Nf3 {[%emt 0:00:57]} fxg4 {[%emt 0:06:01]} 18. hxg4 {[%emt 0:01:20]} Bxg4 {[%emt 0:05:36]} 19. Nd2 {[%emt 0:07:17]} Rg5 {[%emt 0:01:03]} 20. Rg1 {[%emt 0:01:24]} Bh6 {[%emt 0:00:50]} 21. Ne4 {[%emt 0:01:11]} Rxh5 {[%emt 0:00:30]} 22. Rxg4 {[%emt 0:00:21]} Rh1+ {[%emt 0:00:09]} 23. Ke2 {[%emt 0:00:10]} Rxa1 {[%emt 0:00:09]} 24. Rh4 {[%emt 0:00:12]} Bg7 {[%emt 0:00:47]} 25. Rxh7 {[%emt 0:00:17]} Kf7 {[%emt 0:00:40]} 26. Nd2 {[%emt 0:06:25]} Rh8 {[%emt 0:01:01]} 27. Rxh8 {[%emt 0:00:12]} Bxh8 {[%emt 0:00:01]} 28. a3 {[%emt 0:00:18]} Rc1 {[%emt 0:00:44]} 29. Nc4 {[%emt 0:01:33]} Rxc2+ {[%emt 0:00:27]} 30. Kf3 {[%emt 0:00:07]} Bf6 {[%emt 0:01:03]} 31. Kg2 {[%emt 0:03:33]} Ke6 {[%emt 0:00:24]} 32. Kf1 {[%emt 0:01:21]} 0-1

[Event "Austrian Championship Boys-U12 2024"]
[Site "Fuerstenfeld"]
[Date "2024.05.31"]
[Round "4.8"]
[White "Koch, Paul"]
[Black "Feiertag, Niklas"]
[Result "0-1"]
[ECO "B22"]
[WhiteElo "1659"]
[BlackElo "1577"]
[Annotator "NA RC"]
[PlyCount "106"]
[EventDate "2024.05.28"]
[EventType "swiss"]
[EventCountry "AUT"]
[SourceTitle "playchess.com"]
[Source "ChessBase"]
[SourceQuality "1"]
[TimeControl "5400+30"]

1. e4 {[%emt 0:00:01]} c5 {[%emt 0:00:10]} 2. c3 {[%emt 0:00:05]} d5 {[%emt 0:00:07]} 3. exd5 {[%emt 0:00:05]} Qxd5 {[%emt 0:00:07]} 4. d4 {[%emt 0:00:06]} e6 {[%emt 0:01:43]} 5. Nf3 {[%emt 0:00:38]} Nf6 {[%emt 0:01:02]} 6. Bg5 {[%emt 0:03:00]} Be7 {[%emt 0:05:04]} 7. Nbd2 {[%emt 0:01:22]} Nc6 {[%emt 0:01:34]} 8. Bc4 {[%emt 0:00:35]} Qd8 {[%emt 0:00:07]} 9. Nb3 {[%emt 0:00:42]} cxd4 {[%emt 0:05:41]} 10. cxd4 {[%emt 0:00:13]} Bb4+ {[%emt 0:02:11]} 11. Ke2 {[%emt 0:01:26]} O-O {[%emt 0:01:08]} 12. a3 {[%emt 0:00:11]} Be7 {[%emt 0:00:52]} 13. Re1 {[%emt 0:00:25]} a6 {[%emt 0:02:14]} 14. Kf1 {[%emt 0:00:43]} b5 {[%emt 0:00:07]} 15. Bd3 {[%emt 0:01:06]} Bb7 {[%emt 0:01:24]} 16. Qc2 {[%emt 0:01:26]} h6 {[%emt 0:00:29]} 17. Bh4 {[%emt 0:00:10]} Rc8 {[%emt 0:00:15]} 18. Qd2 {[%emt 0:00:36]} Nd7 {[%emt 0:05:39]} 19. Bxe7 {[%emt 0:00:30]} Nxe7 {[%emt 0:00:19]} 20. Qe2 {[%emt 0:02:38]} Nd5 {[%emt 0:01:55]} 21. Rac1 {[%emt 0:01:12]} Nf4 {[%emt 0:01:37]} 22. Qe3 {[%emt 0:00:25]} Nxd3 {[%emt 1:07:45]} 23. Qxd3 {[%emt 0:00:09]} Bd5 {[%emt 0:00:00]} 24. Rc3 {[%emt 0:04:06]} Bc4 {[%emt 0:00:00]} 25. Rxc4 {[%emt 0:00:27]} bxc4 {[%emt 0:00:00]} 26. Qd1 {[%emt 0:01:02]} cxb3 {[%emt 0:00:00]} 27. Qxb3 {[%emt 0:00:40]} Qb6 {[%emt 0:00:00]} 28. Qxb6 {[%emt 0:00:31]} Nxb6 {[%emt 0:00:00]} 29. h4 {[%emt 0:01:46]} Rc2 {[%emt 0:00:00]} 30. Rb1 {[%emt 0:00:07]} Rfc8 {[%emt 0:00:00]} 31. g4 {[%emt 0:00:37]} Rc1+ 32. Rxc1 Rxc1+ {[%emt 0:05:00]} 33. Kg2 {[%emt 1:20:00]} Rb1 {[%emt 0:00:30]} 34. b4 {[%emt 0:00:00]} Rb3 {[%emt 0:00:00]} 35. Kg3 {[%emt 0:00:00]} Rxa3 {[%emt 0:00:00]} 36. Kf4 {[%emt 0:00:00]} Nd5+ {[%emt 0:00:00]} 37. Ke4 {[%emt 0:00:00]} Rxf3 {[%emt 0:00:00]} 38. Kxf3 {[%emt 0:00:00]} Nxb4 {[%emt 0:00:00]} 39. Ke2 {[%emt 0:00:00]} a5 {[%emt 0:00:00]} 40. Kd2 {[%emt 0:00:00]} a4 {[%emt 0:00:00]} 41. Kc3 {[%emt 0:00:00]} a3 {[%emt 0:00:00]} 42. Kb3 {[%emt 0:00:00]} a2 {[%emt 0:00:00]} 43. Kb2 {[%emt 0:00:00]} Kf8 {[%emt 0:00:00]} 44. f4 {[%emt 0:00:00]} Ke7 {[%emt 0:00:00]} 45. g5 {[%emt 0:00:00]} h5 {[%emt 0:00:00]} 46. Ka1 {[%emt 0:00:00]} Kd6 {[%emt 0:00:00]} 47. Kb2 {[%emt 0:00:00]} Kd5 {[%emt 0:00:00]} 48. f5 {[%emt 0:00:00]} exf5 {[%emt 0:00:00]} 49. g6 {[%emt 0:00:00]} fxg6 {[%emt 0:00:00]} 50. Ka1 {[%emt 0:00:00]} Kc4 {[%emt 0:00:00]} 51. Kb2 {[%emt 0:00:00]} f4 {[%emt 0:00:00]} 52. Ka1 {[%emt 0:00:00]} Kb3 {[%emt 0:00:00]} 53. d5 {[%emt 0:00:00]} Nc2# {[%emt 0:00:00]} 0-1

[Event "Austrian Championship Boys-U12 2024"]
[Site "Fuerstenfeld"]
[Date "2024.06.01"]
[Round "5.1"]
[White "Radnaev, Leo"]
[Black "Pleimer, Noah"]
[Result "1/2-1/2"]
[ECO "B21"]
[WhiteElo "1879"]
[BlackElo "1836"]
[Annotator "NA RC"]
[PlyCount "107"]
[EventDate "2024.05.28"]
[EventType "swiss"]
[EventCountry "AUT"]
[SourceTitle "playchess.com"]
[Source "ChessBase"]
[SourceQuality "1"]
[TimeControl "5400+30"]

1. e4 {[%emt 0:00:01]} c5 {[%emt 0:00:03]} 2. Be2 {[%emt 0:00:06]} e6 {[%emt 0:00:53]} 3. f4 {[%emt 1:31:53]} d5 {[%emt 0:00:53]} 4. d3 {[%emt 0:00:00]} Nc6 {[%emt 0:01:00]} 5. Nf3 {[%emt 0:00:00]} Be7 {[%emt 0:01:54]} 6. O-O {[%emt 0:00:00] B21: Sicilian: 2 f4 and Morra Gambit.} b6 {[%emt 0:02:01]} 7. e5 {[%emt 0:00:00]} h5 {[%emt 0:04:21]} 8. c3 {[%emt 0:00:00]} Nh6 {[%emt 0:10:16]} 9. Na3 {[%emt 0:00:00]} Nf5 {[%emt 0:02:41]} 10. Nc2 {[%emt 0:00:00]} Bd7 {[%emt 0:05:38]} (10... d4 $15) 11. Ne3 {[%emt 0:00:00]} Nxe3 {[%emt 0:03:13]} 12. Bxe3 {[%emt 0:00:00]} h4 {[%emt 0:03:55]} 13. Bf2 {[%emt 0:00:00]} Qc7 {[%emt 0:02:39]} 14. d4 {[%emt 0:00:00]} c4 {[%emt 0:00:59]} (14... a5 $142) 15. Qe1 {[%emt 0:00:00]} Qd8 {[%emt 0:02:54]} 16. Nd2 {[%emt 0:00:00]} Qc7 {[%emt 0:02:45]} 17. Nf3 {[%emt 0:00:00]} Qd8 {[%emt 0:00:15]} 18. Bd1 {[%emt 0:00:00]} b5 {[%emt 0:01:15]} 19. Bc2 {[%emt 0:00:00]} a5 {[%emt 0:00:57]} 20. h3 {[%emt 0:00:00]} b4 {[%emt 0:01:40]} 21. Be3 {[%emt 0:00:00]} g6 {[%emt 0:06:27]} 22. Ng5 {[%emt 0:00:00]} Bxg5 {[%emt 0:03:55]} (22... a4 $11 {keeps the balance.}) 23. fxg5 {[%emt 0:00:00]} Qe7 {[%emt 0:00:38]} (23... Ne7 $16) 24. Rf6 {[%emt 0:00:00]} Rh7 {[%emt 0:01:54]} 25. Qf2 {[%emt 0:00:00]} O-O-O {[%emt 0:01:38]} 26. Rf1 {[%emt 0:00:00]} Be8 {[%emt 0:00:29]} 27. Ba4 {[%emt 0:00:00]} Kc7 {[%emt 0:00:52]} (27... Bd7 {was called for.} 28. Bxc6 (28. Rxf7 Qxf7 29. Qxf7 Rxf7 $18) 28... Bxc6 29. Rxf7 Qxf7 30. Qxf7 Rxf7 31. Rxf7 Ba4) 28. Bd2 {[%emt 0:00:00]} Rb8 {[%emt 0:01:28]} 29. Qe1 {[%emt 0:00:00]} Rb7 {[%emt 0:01:36]} 30. R1f4 {[%emt 0:00:00]} Rh5 {[%emt 0:01:59]} 31. Qf2 {[%emt 0:00:00]} Rh7 {[%emt 0:00:21]} 32. Rxh4 {[%emt 0:00:00]} Rxh4 {[%emt 0:00:23]} 33. Qxh4 {[%emt 0:00:00]} Nd8 {[%emt 0:01:20]} 34. Bxe8 {[%emt 0:00:00]} Qxe8 {[%emt 0:00:04]} 35. Qe1 {[%emt 0:00:00]} Qa4 {[%emt 0:01:04]} 36. Qb1 {[%emt 0:00:00]} Kb8 {[%emt 0:01:13]} 37. h4 {[%emt 0:00:00]} Nc6 {[%emt 0:02:21]} 38. g4 {[%emt 0:00:01]} Nxd4 {[%emt 0:06:18]} 39. cxd4 {[%emt 0:12:13]} c3 {[%emt 0:00:09]} 40. b3 {[%emt 0:00:26]} Qb5 {[%emt 0:01:15]} 41. Rf2 {[%emt 0:00:35]} cxd2 {[%emt 0:00:45]} 42. Rxd2 {[%emt 0:00:17]} Rc7 {[%emt 0:00:24]} 43. Qf1 {[%emt 0:01:51]} Qe8 {[%emt 0:01:04]} 44. Qa6 {[%emt 0:00:41]} Qd8 {[%emt 0:00:41]} 45. Rf2 $18 {[%emt 0:01:59]} (45. Qxa5 {leads to mate.} Rc1+ 46. Kh2 Qxa5 47. h5 Qa6 (47... gxh5 $2 48. gxh5 Qd8 49. Rg2 $19) 48. Rf2 Qd3 (48... gxh5 $2 49. g6 $19) 49. hxg6 Qe4 (49... Qxd4 {gets mated.} 50. Kg3 Rg1+ 51. Rg2 Qxe5+ 52. Kf3 Qe4+ 53. Kf2 Rxg2+ 54. Kf1 Qe2#) (49... Qxg6 50. Re2 Qh7+ 51. Kg2 Qh1+ 52. Kg3 Rc3+ 53. Re3 Qg1+ 54. Kh3 Rxe3+ 55. Kh4 Qh2#) 50. Rf6 Rc2+ (50... Qxd4 {is a self mate.} 51. Rxf7 Qg1+ 52. Kh3 Rc3+ 53. Rf3 Rxf3+ 54. Kh4 Qh2#)) 45... Qh8 {[%emt 0:01:31]} 46. Qb6+ {[%emt 0:02:31]} Kc8 {[%emt 0:00:20]} 47. Qa6+ {[%emt 0:00:46]} Kb8 {[%emt 0:00:07]} 48. Qb5+ {[%emt 0:00:33]} Kc8 {[%emt 0:00:20]} 49. Qa6+ {[%emt 0:00:34]} Kb8 {[%emt 0:00:06]} 50. h5 {[%emt 0:00:24]} gxh5 {[%emt 0:00:29]} 51. Qd6 {[%emt 0:00:11]} Qh7 {[%emt 0:01:46]} 52. Qb6+ {[%emt 0:00:53]} Kc8 {[%emt 0:00:19]} 53. Qa6+ {[%emt 0:00:31]} Kb8 {[%emt 0:00:10]} 54. Qb5+ {[%emt 0:00:30]} 1/2-1/2

[Event "Austrian Championship Boys-U12 2024"]
[Site "Fuerstenfeld"]
[Date "2024.06.01"]
[Round "5.2"]
[White "Chen, Chicheng Leon"]
[Black "Keller, Niklas"]
[Result "1/2-1/2"]
[ECO "B12"]
[WhiteElo "1827"]
[BlackElo "1710"]
[Annotator "NA RC"]
[PlyCount "80"]
[EventDate "2024.05.28"]
[EventType "swiss"]
[EventCountry "AUT"]
[SourceTitle "playchess.com"]
[Source "ChessBase"]
[SourceQuality "1"]
[TimeControl "5400+30"]

1. e4 {[%emt 0:00:01]} c6 {[%emt 0:00:08]} 2. d4 {[%emt 0:01:32]} d5 {[%emt 0:00:14]} 3. e5 {[%emt 0:00:03]} Bf5 {[%emt 0:00:36]} 4. h4 {[%emt 0:00:04]} h5 {[%emt 0:00:11]} 5. Bd3 {[%emt 0:00:03]} Bxd3 {[%emt 0:00:26]} 6. Qxd3 {[%emt 0:00:05] B12: Caro-Kann: Advance Variation.} Qa5+ {[%emt 0:00:13]} 7. Nd2 {[%emt 0:00:05]} e6 {[%emt 0:00:27]} 8. Ngf3 {[%emt 0:00:08]} Nh6 {[%emt 0:00:15] 8...Nh6 scores better than 8...Qa6.} 9. O-O {[%emt 0:02:53]} Nf5 {[%emt 0:01:02]} 10. Nb3 {[%emt 0:01:21]} Qa6 {[%emt 0:00:20]} 11. Qd1 {[%emt 0:00:05]} b6 {[%emt 0:00:36]} 12. Bg5 {[%emt 0:05:41]} c5 {[%emt 0:07:48]} 13. c3 {[%emt 0:02:02]} Nc6 {[%emt 0:03:13]} 14. Re1 {[%emt 0:01:56]} Rc8 {[%emt 0:02:02]} 15. Qd2 $146 {[%emt 0:01:39]} ({Predecessor:} 15. Re2 Qa4 16. Rc2 Be7 17. g3 Bxg5 18. Nxg5 Nce7 19. dxc5 bxc5 20. c4 dxc4 21. Nd2 {1-0 Shirov,A (2668)-Sivuk,V (2459) Riga Tech Rapid op 2023 (7)}) 15... Be7 {[%emt 0:04:12]} 16. Bxe7 {[%emt 0:05:32]} Ncxe7 {[%emt 0:00:24]} 17. Qg5 {[%emt 0:05:01]} Qb7 {[%emt 0:05:52]} 18. a4 {[%emt 0:01:59]} Ng6 {[%emt 0:05:22]} 19. g3 {[%emt 0:06:54]} Qe7 {[%emt 0:01:17]} 20. a5 {[%emt 0:02:44]} Qxg5 {[%emt 0:02:03]} 21. Nxg5 {[%emt 0:00:27]} c4 {[%emt 0:01:42]} 22. Nd2 {[%emt 0:07:46]} b5 {[%emt 0:01:03]} 23. a6 {[%emt 0:00:55]} Ke7 {[%emt 0:01:42]} 24. Ra5 {[%emt 0:02:47]} Rb8 {[%emt 0:01:33]} 25. Nb1 {[%emt 0:02:38]} Rb6 {[%emt 0:04:04]} 26. Na3 {[%emt 0:49:09]} Rhb8 {[%emt 0:00:29]} 27. Nc2 {[%emt 0:00:00]} f6 {[%emt 0:03:48]} 28. Nf3 {[%emt 0:00:00]} Kd7 {[%emt 0:00:46]} 29. Re2 {[%emt 0:00:00]} Nge7 {[%emt 0:01:04]} 30. Nb4 {[%emt 0:00:00]} Nc6 {[%emt 0:00:31]} 31. Nxc6 {[%emt 0:00:00]} Rxc6 {[%emt 0:00:11]} 32. exf6 {[%emt 0:00:00]} gxf6 {[%emt 0:00:16]} 33. Nd2 {[%emt 0:00:00]} Rcb6 {[%emt 0:00:30]} 34. b4 {[%emt 0:00:00]} Ng7 {[%emt 0:01:31]} 35. Nb1 {[%emt 0:00:00]} Ne8 {[%emt 0:00:12]} 36. Rea2 {[%emt 0:00:00]} Nc7 {[%emt 0:00:35]} 37. Na3 {[%emt 0:00:00]} Rc6 {[%emt 0:00:47]} ({Reject} 37... Nxa6 $6 38. Nc2 Nc7 39. Rxa7 $14) ({But not} 37... Rxa6 $6 38. Rxa6 (38. Nxc4 Rc6 $11) 38... Nxa6 39. Nxc4 $16) (37... e5 $15 38. Rd2 e4 (38... Nxa6 $2 39. dxe5 Nc7 40. Rxa7 $18)) 38. f4 {[%emt 0:00:00]} f5 {[%emt 0:00:14]} 39. Kf2 {[%emt 0:00:00]} Rbb6 {[%emt 0:00:37]} 40. Ke3 {[%emt 0:00:00]} Rd6 $15 {[%emt 0:01:26]} ({Much weaker is} 40... Nxa6 $6 41. Nxb5 (41. Rxb5 Nc7 $15) 41... Nc7 42. Nxc7 (42. Nxa7 Rd6 $11) 42... Rxc7 43. Rxa7 $14) 1/2-1/2

[Event "Austrian Championship Boys-U12 2024"]
[Site "Fuerstenfeld"]
[Date "2024.06.01"]
[Round "5.3"]
[White "Feiertag, Niklas"]
[Black "Aboulenein-Djamshidian, Aryan"]
[Result "1-0"]
[ECO "D36"]
[WhiteElo "1577"]
[BlackElo "1625"]
[Annotator "NA RC"]
[PlyCount "121"]
[EventDate "2024.05.28"]
[EventType "swiss"]
[EventCountry "AUT"]
[SourceTitle "playchess.com"]
[Source "ChessBase"]
[SourceQuality "1"]
[TimeControl "5400+30"]

1. d4 {[%emt 0:00:06]} e6 {[%emt 0:00:09]} 2. c4 {[%emt 0:00:28]} d5 {[%emt 0:00:05]} 3. Nc3 {[%emt 0:00:07]} Nf6 {[%emt 0:00:05]} 4. cxd5 {[%emt 0:01:01]} exd5 {[%emt 0:00:08]} 5. Bg5 {[%emt 0:00:05]} Nbd7 {[%emt 0:00:33]} 6. e3 {[%emt 0:01:21]} c6 {[%emt 0:01:02]} 7. Bd3 {[%emt 0:00:26]} Bd6 {[%emt 0:00:08]} 8. Nge2 {[%emt 0:02:37]} O-O {[%emt 0:07:00]} 9. Qc2 {[%emt 0:01:24]} Qc7 {[%emt 0:02:09]} 10. h3 {[%emt 0:02:29]} b5 {[%emt 0:05:19]} 11. O-O {[%emt 0:03:09]} a5 {[%emt 0:01:35]} 12. Rfc1 {[%emt 0:00:54]} Qb6 {[%emt 0:01:35]} 13. a3 {[%emt 0:01:12]} Bb7 {[%emt 0:02:00]} 14. Rab1 {[%emt 0:07:08]} h6 {[%emt 0:08:19]} 15. Bf4 {[%emt 0:03:09]} Bxf4 {[%emt 0:02:07]} 16. Nxf4 {[%emt 0:00:16]} Ne8 {[%emt 0:00:46]} 17. Nfe2 {[%emt 0:08:23]} Nd6 {[%emt 0:05:16]} 18. Rd1 {[%emt 0:02:43]} Nf6 {[%emt 0:00:56]} 19. Nc1 {[%emt 0:00:48]} Rfe8 {[%emt 0:00:41]} 20. Nb3 {[%emt 1:02:44]} Bc8 {[%emt 0:04:01]} 21. Nc5 {[%emt 0:00:00]} Nb7 {[%emt 0:01:49]} 22. Ne2 {[%emt 0:00:00]} Nxc5 {[%emt 0:00:39]} 23. dxc5 {[%emt 0:00:00]} Qc7 {[%emt 0:01:48]} 24. Nd4 {[%emt 0:00:00]} Bd7 {[%emt 0:08:43]} 25. Bf5 {[%emt 0:00:00]} Bxf5 {[%emt 0:00:19]} 26. Nxf5 {[%emt 0:00:00]} Rad8 {[%emt 0:05:26]} 27. Qc3 {[%emt 0:00:00]} Re5 {[%emt 0:01:09]} 28. Nd4 {[%emt 0:00:00]} Ne4 {[%emt 0:00:36]} 29. Qc2 {[%emt 0:00:00]} Rc8 {[%emt 0:01:03]} 30. b4 {[%emt 0:00:00]} a4 {[%emt 0:00:10]} 31. Qb2 {[%emt 0:00:00]} Qe7 {[%emt 0:03:52]} 32. Rd3 {[%emt 0:00:00]} Rh5 {[%emt 0:03:44]} 33. Qe2 {[%emt 0:00:00]} Qg5 {[%emt 0:01:32]} 34. Qg4 {[%emt 0:00:00]} Qxg4 {[%emt 0:03:34]} 35. hxg4 {[%emt 0:00:00]} Re5 {[%emt 0:00:03]} 36. f3 {[%emt 0:00:00]} Nf6 {[%emt 0:00:26]} 37. Kf2 {[%emt 0:00:00]} g5 {[%emt 0:00:30]} 38. Rh1 {[%emt 0:00:00]} Kh7 {[%emt 0:00:19]} 39. Nf5 {[%emt 0:00:00]} Ng8 {[%emt 0:00:06]} 40. Rh5 {[%emt 0:00:00]} Rc7 {[%emt 0:01:15]} 41. Rd1 {[%emt 0:00:00]} Re6 {[%emt 0:00:08]} 42. Rdh1 {[%emt 0:00:00]} Rg6 {[%emt 0:00:27]} 43. g3 {[%emt 0:00:00]} Rc8 {[%emt 0:03:06]} 44. f4 {[%emt 0:00:00]} f6 {[%emt 0:00:29]} 45. Kf3 {[%emt 0:00:00]} Re8 {[%emt 0:00:14]} 46. Rd1 {[%emt 0:00:00]} Ne7 {[%emt 0:00:51]} 47. Nd6 {[%emt 0:00:00]} Rd8 {[%emt 0:00:15]} 48. Rdh1 {[%emt 0:00:00]} Ng8 {[%emt 0:03:34]} 49. Nf5 {[%emt 0:00:00]} Rd7 {[%emt 0:00:48]} 50. Rd1 {[%emt 0:00:00]} Ne7 {[%emt 0:00:38]} 51. Nd4 {[%emt 0:00:00]} gxf4 {[%emt 0:03:50]} 52. gxf4 {[%emt 0:00:00]} Kg7 {[%emt 0:00:24]} 53. Rdh1 {[%emt 0:00:00]} Kf7 {[%emt 0:02:12]} 54. f5 {[%emt 0:00:00]} Rg7 {[%emt 0:00:18]} 55. Rxh6 {[%emt 0:00:00]} Ng8 {[%emt 0:00:30]} 56. Rh7 {[%emt 0:00:00]} Rxh7 {[%emt 0:00:42]} 57. Rxh7+ {[%emt 0:00:00]} Ke8 {[%emt 0:00:04]} 58. Rh8 {[%emt 0:00:00]} Kf7 {[%emt 0:01:03]} 59. Nxc6 {[%emt 0:00:00]} Kg7 {[%emt 0:00:12]} 60. Rh2 {[%emt 0:00:00]} Rc7 {[%emt 0:00:02]} 61. Nd4 {[%emt 0:00:00]} 1-0